[Event "Icelandic Team-ch Kvika Leagu 2023-24"]
[Site "Reykjavik"]
[Date "2024.03.02"]
[Round "9"]
[White "Ragnarsson, Dagur"]
[Black "Petersson, Baldur Teodor"]
[Result "1/2-1/2"]
[ECO "D10"]
[WhiteElo "2337"]
[BlackElo "2190"]
[Annotator "RC"]
[PlyCount "36"]
[EventDate "2024.02.29"]
[EventType "team-tourn"]
[EventCountry "ISL"]
[SourceTitle "playchess.com"]
[Source "ChessBase"]
[SourceQuality "1"]
[TimeControl "40/5400+30:900+30"]

1. d4 {[%emt 0:00:30]} d5 {[%emt 0:00:30]} 2. c4 {[%emt 0:00:30]} c6 {[%emt 0:00:30]} 3. Nc3 {[%emt 0:00:30]} Nf6 {[%emt 0:00:30]} 4. e3 {[%emt 0:00:30]} a6 {[%emt 0:00:30]} 5. Bd3 {[%emt 0:00:30]} b5 {[%emt 0:00:30]} 6. b3 {[%emt 0:00:30]} e6 {[%emt 0:00:30]} 7. Nge2 {[%emt 0:00:30]} Bd6 {[%emt 0:00:30]} 8. c5 {[%emt 0:00:30]} Bc7 {[%emt 0:00:30]} 9. f4 {[%emt 0:00:30]} Ng4 {[%emt 0:00:30]} 10. O-O {[%emt 0:00:30]} f5 {[%emt 0:00:30]} 11. Qe1 {[%emt 0:00:30]} Nd7 {[%emt 0:00:30]} 12. Nd1 {[%emt 0:00:30]} a5 {[%emt 0:00:30]} 13. a4 {[%emt 0:00:30]} b4 {[%emt 0:00:30]} 14. Kh1 {[%emt 0:00:30]} Ba6 {[%emt 0:00:30]} 15. Nb2 {[%emt 0:00:30]} Ndf6 {[%emt 0:00:30]} 16. h3 {[%emt 0:00:30]} Nh6 {[%emt 0:00:30]} 17. Bxa6 {[%emt 0:00:30]} Rxa6 {[%emt 0:00:30]} 18. Nd3 {[%emt 4:09:26]} Ne4 {[%emt 0:51:58]} 1/2-1/2

[Event "Icelandic Team-ch Kvika Leagu 2023-24"]
[Site "Reykjavik"]
[Date "2024.03.02"]
[Round "9"]
[White "O`Donnell, Conor"]
[Black "Sverrisson, Nokkvi"]
[Result "1/2-1/2"]
[ECO "E04"]
[WhiteElo "2284"]
[BlackElo "2052"]
[Annotator "RC"]
[PlyCount "64"]
[EventDate "2024.02.29"]
[EventType "team-tourn"]
[EventCountry "ISL"]
[SourceTitle "playchess.com"]
[Source "ChessBase"]
[SourceQuality "1"]
[TimeControl "40/5400+30:900+30"]

1. d4 {[%emt 0:00:09]} Nf6 {[%emt 0:00:10]} 2. c4 {[%emt 0:00:12]} e6 {[%emt 0:00:05]} 3. Nf3 {[%emt 0:00:31]} d5 {[%emt 0:00:19]} 4. g3 {[%emt 0:00:52]} dxc4 {[%emt 0:00:23]} 5. Bg2 {[%emt 0:00:59]} c5 {[%emt 0:01:11]} 6. O-O {[%emt 0:04:55]} Nc6 {[%emt 0:06:35]} 7. Qa4 {[%emt 0:01:50]} Bd7 {[%emt 0:03:21]} 8. dxc5 {[%emt 0:03:23]} Qa5 {[%emt 0:15:49]} 9. Qxc4 {[%emt 0:05:43]} Qxc5 {[%emt 0:03:37]} 10. Qb3 {[%emt 0:01:47]} Na5 {[%emt 0:03:28]} 11. Qd1 {[%emt 0:08:24]} Be7 {[%emt 0:05:03]} 12. b3 {[%emt 0:04:48]} Rc8 {[%emt 0:05:46]} 13. Ba3 {[%emt 0:15:17]} Qc2 {[%emt 0:00:22]} 14. Qe1 {[%emt 0:05:30]} Bxa3 {[%emt 0:05:52]} 15. Nxa3 {[%emt 0:00:17]} Qc3 {[%emt 0:01:16]} 16. Qxc3 {[%emt 0:01:23]} Rxc3 {[%emt 0:00:06]} 17. Ne5 {[%emt 0:11:40]} Ke7 {[%emt 0:09:12]} 18. Nxd7 {[%emt 0:02:38]} Nxd7 {[%emt 0:00:06]} 19. Rfc1 {[%emt 0:04:18]} Rcc8 {[%emt 0:05:44]} 20. Nb5 {[%emt 0:02:36]} a6 {[%emt 0:02:54]} 21. Nd4 {[%emt 0:00:04]} Ne5 {[%emt 0:03:41]} 22. b4 {[%emt 0:07:21]} Nac6 {[%emt 0:00:44]} 23. Nxc6+ {[%emt 0:00:07]} Nxc6 {[%emt 0:00:04]} 24. Rab1 {[%emt 0:06:12]} Rc7 {[%emt 0:02:39]} 25. Rc5 {[%emt 0:06:14]} Rhc8 {[%emt 0:04:43]} 26. Rbc1 {[%emt 0:01:09]} Kd6 {[%emt 0:00:33]} 27. Rd1+ {[%emt 0:00:05]} Ke7 {[%emt 0:00:08]} 28. Rdc1 {[%emt 0:01:08]} Kd6 {[%emt 0:00:05]} 29. a3 {[%emt 0:01:57]} Nd8 {[%emt 0:07:39]} 30. Rxc7 {[%emt 0:02:01]} Rxc7 {[%emt 0:00:05]} 31. Rxc7 {[%emt 0:00:30]} Kxc7 {[%emt 0:00:06]} 32. Kf1 {[%emt 0:00:14]} Nc6 {[%emt 0:01:48]} 1/2-1/2

[Event "Icelandic Team-ch Kvika Leagu 2023-24"]
[Site "Reykjavik"]
[Date "2024.03.02"]
[Round "9"]
[White "Gislason, Gudmundur"]
[Black "Thorfinnsson, Bragi"]
[Result "1/2-1/2"]
[ECO "A17"]
[WhiteElo "2266"]
[BlackElo "2397"]
[Annotator "RC"]
[PlyCount "88"]
[EventDate "2024.02.29"]
[EventType "team-tourn"]
[EventCountry "ISL"]
[SourceTitle "playchess.com"]
[Source "ChessBase"]
[SourceQuality "1"]
[TimeControl "40/5400+30:900+30"]

1. Nf3 {[%emt 0:00:13]} d5 {[%emt 0:04:19]} 2. c4 {[%emt 0:00:07]} e6 {[%emt 0:01:13]} 3. e3 {[%emt 0:00:57]} Nf6 {[%emt 0:02:55]} 4. Nc3 {[%emt 0:04:29]} Bd6 {[%emt 0:02:56]} 5. d4 {[%emt 0:01:06]} O-O {[%emt 0:02:49]} 6. c5 {[%emt 0:11:47]} Be7 {[%emt 0:01:01]} 7. b4 {[%emt 0:00:27]} b6 {[%emt 0:01:20]} 8. Rb1 {[%emt 0:00:10]} c6 {[%emt 0:03:29]} 9. Bd3 {[%emt 0:01:20]} a5 {[%emt 0:01:37]} 10. a3 {[%emt 0:00:25]} Ba6 {[%emt 0:00:40]} 11. O-O {[%emt 0:05:36]} Bxd3 {[%emt 0:02:39]} 12. Qxd3 {[%emt 0:00:11]} axb4 {[%emt 0:00:20]} 13. axb4 {[%emt 0:00:16]} b5 {[%emt 0:00:10]} 14. Bd2 {[%emt 0:14:27]} Nbd7 {[%emt 0:01:53]} 15. Ra1 {[%emt 0:04:18]} Qc7 {[%emt 0:00:54]} 16. Rfb1 {[%emt 0:15:22]} Qb7 {[%emt 0:04:27]} 17. h3 {[%emt 0:03:45]} Ra6 {[%emt 0:01:51]} 18. Rxa6 {[%emt 0:05:18]} Qxa6 {[%emt 0:01:10]} 19. Be1 {[%emt 0:00:39]} Ra8 {[%emt 0:02:50]} 20. Nd2 {[%emt 0:00:39]} Bd8 {[%emt 0:01:47]} 21. f4 {[%emt 0:14:09]} Bc7 {[%emt 0:02:01]} 22. g4 {[%emt 0:01:06]} Qc8 {[%emt 0:02:18]} 23. Nf3 {[%emt 0:04:18]} Ra3 {[%emt 0:02:10]} 24. Qc2 {[%emt 0:01:21]} Qa8 {[%emt 0:02:16]} 25. Rb2 {[%emt 0:03:01]} Ne4 {[%emt 0:02:48]} 26. Ra2 {[%emt 0:02:50]} Nxc3 {[%emt 0:03:54]} 27. Rxa3 {[%emt 0:00:09]} Ne2+ {[%emt 0:00:16]} 28. Qxe2 {[%emt 0:00:35]} Qxa3 {[%emt 0:00:05]} 29. g5 {[%emt 0:00:37]} Nb8 {[%emt 0:01:19]} 30. Kg2 {[%emt 0:00:48]} Na6 {[%emt 0:01:49]} 31. Qd2 {[%emt 0:00:11]} Qb3 {[%emt 0:00:22]} 32. Qc3 {[%emt 0:01:02]} Qa2+ {[%emt 0:00:28]} 33. Nd2 {[%emt 0:00:51]} Nxb4 {[%emt 0:02:51]} 34. Qxb4 {[%emt 0:01:02]} Ba5 {[%emt 0:00:11]} 35. Qb3 {[%emt 0:01:35]} Qxb3 {[%emt 0:00:23]} 36. Nxb3 {[%emt 0:00:13]} Bxe1 {[%emt 0:00:12]} 37. Kf1 {[%emt 0:00:17]} Bb4 {[%emt 0:00:19]} 38. Ke2 {[%emt 0:00:32]} f6 {[%emt 0:01:43]} 39. h4 {[%emt 0:02:11]} Kf7 {[%emt 0:01:36]} 40. Kf3 {[%emt 0:00:00]} Kg6 {[%emt 0:00:00]} 41. Kg4 {[%emt 0:09:05]} h5+ {[%emt 0:16:40]} 42. gxh6 {[%emt 0:00:49]} gxh6 {[%emt 0:00:46]} 43. h5+ {[%emt 0:00:25]} Kf7 {[%emt 0:00:17]} 44. Kf3 {[%emt 0:00:43]} Ke7 {[%emt 0:00:17]} 1/2-1/2

[Event "Icelandic Team-ch Kvika Leagu 2023-24"]
[Site "Reykjavik"]
[Date "2024.03.02"]
[Round "9"]
[White "Van den Berg, Bram"]
[Black "Sulypa, Oleksandr"]
[Result "1-0"]
[ECO "B20"]
[WhiteElo "2173"]
[BlackElo "2457"]
[Annotator "RC"]
[PlyCount "55"]
[EventDate "2024.02.29"]
[EventType "team-tourn"]
[EventCountry "ISL"]
[SourceTitle "playchess.com"]
[Source "ChessBase"]
[SourceQuality "1"]
[TimeControl "40/5400+30:900+30"]

1. e4 {[%emt 0:00:07]} c5 {[%emt 0:00:13]} 2. b4 {[%emt 0:00:05]} cxb4 {[%emt 0:00:14]} 3. a3 {[%emt 0:00:05]} e5 {[%emt 0:00:47]} 4. Nf3 {[%emt 0:00:18]} Nc6 {[%emt 0:00:18]} 5. Bb5 {[%emt 0:00:04]} a6 {[%emt 0:01:42]} 6. Ba4 {[%emt 0:06:14]} Nf6 {[%emt 0:17:53]} 7. O-O {[%emt 0:01:54]} Nxe4 {[%emt 0:25:11]} 8. Re1 {[%emt 0:15:15]} Nc5 {[%emt 0:01:10]} 9. axb4 {[%emt 0:09:05]} Nxa4 {[%emt 0:03:40]} 10. Nxe5 {[%emt 0:04:15]} Be7 {[%emt 0:08:14]} 11. Rxa4 {[%emt 0:05:46]} O-O {[%emt 0:05:05]} 12. b5 {[%emt 0:05:43]} Nxe5 {[%emt 0:00:45]} 13. Rxe5 {[%emt 0:00:20]} d6 {[%emt 0:06:51]} 14. Re1 {[%emt 0:00:32]} Be6 {[%emt 0:02:11]} 15. bxa6 {[%emt 0:05:58]} Rxa6 {[%emt 0:01:35]} 16. Rxa6 {[%emt 0:00:50]} bxa6 {[%emt 0:00:04]} 17. d4 {[%emt 0:00:05]} Bf6 {[%emt 0:03:20]} 18. Nc3 {[%emt 0:02:14]} Qa5 {[%emt 0:01:07]} 19. Ne2 {[%emt 0:03:31]} Rc8 {[%emt 0:02:12]} 20. c3 {[%emt 0:03:41]} Qa2 {[%emt 0:08:39]} 21. Bd2 {[%emt 0:02:51]} g6 {[%emt 0:03:30]} 22. Nf4 {[%emt 0:03:29]} Bf5 {[%emt 0:00:26]} 23. Ne2 {[%emt 0:02:05]} Rb8 {[%emt 0:04:05]} 24. Ng3 {[%emt 0:06:36]} Bd3 {[%emt 0:00:37]} 25. Bh6 {[%emt 0:00:49]} Qc2 {[%emt 0:02:22]} 26. Qxc2 {[%emt 0:02:40]} Bxc2 {[%emt 0:00:32]} 27. Bf4 {[%emt 0:00:11]} Rb6 {[%emt 0:00:41]} 28. Nf1 {[%emt 0:02:24]} 1-0

[Event "Icelandic Team-ch Kvika Leagu 2023-24"]
[Site "Reykjavik"]
[Date "2024.03.02"]
[Round "9"]
[White "Kristinsson, Baldur"]
[Black "Bjornsson, Sigurbjorn"]
[Result "1/2-1/2"]
[ECO "B51"]
[WhiteElo "2169"]
[BlackElo "2305"]
[Annotator "RC"]
[PlyCount "75"]
[EventDate "2024.02.29"]
[EventType "team-tourn"]
[EventCountry "ISL"]
[SourceTitle "playchess.com"]
[Source "ChessBase"]
[SourceQuality "1"]
[TimeControl "40/5400+30:900+30"]

1. e4 {[%emt 0:00:27]} c5 {[%emt 0:03:47]} 2. Nf3 {[%emt 0:00:05]} d6 {[%emt 0:00:21]} 3. Bb5+ {[%emt 0:00:14]} Nd7 {[%emt 0:00:06]} 4. O-O {[%emt 0:00:06]} a6 {[%emt 0:00:07]} 5. Bd3 {[%emt 0:00:06]} Ngf6 {[%emt 0:00:06]} 6. Re1 {[%emt 0:00:21]} g6 {[%emt 0:00:19]} 7. b3 {[%emt 0:07:44]} Bg7 {[%emt 0:00:08]} 8. Bb2 {[%emt 0:00:04]} O-O {[%emt 0:01:44]} 9. Bf1 {[%emt 0:01:21]} b5 {[%emt 0:02:26]} 10. d4 {[%emt 0:02:06]} cxd4 {[%emt 0:00:33]} 11. Bxd4 {[%emt 0:01:32]} Bb7 {[%emt 0:00:35]} 12. Nbd2 {[%emt 0:00:45]} e5 {[%emt 0:07:04]} 13. Bb2 {[%emt 0:00:25]} Nc5 {[%emt 0:00:30]} 14. Bd3 {[%emt 0:02:19]} Rc8 {[%emt 0:02:19]} 15. a4 {[%emt 0:06:56]} bxa4 {[%emt 0:17:01]} 16. b4 {[%emt 0:00:08]} Nxd3 {[%emt 0:02:18]} 17. cxd3 {[%emt 0:00:56]} Nh5 {[%emt 0:01:44]} 18. Rxa4 {[%emt 0:04:56]} Nf4 {[%emt 0:05:06]} 19. Nc4 {[%emt 0:00:44]} f5 {[%emt 0:03:13]} 20. Na5 {[%emt 0:00:37]} Ba8 {[%emt 0:02:41]} 21. Ra3 {[%emt 0:06:26]} Kh8 {[%emt 0:04:12]} 22. Bc1 {[%emt 0:00:28]} Ne6 {[%emt 0:03:09]} 23. Nb3 {[%emt 0:09:00]} Qb6 {[%emt 0:06:02]} 24. Be3 {[%emt 0:03:30]} Qxb4 {[%emt 0:01:12]} 25. Rxa6 {[%emt 0:00:07]} fxe4 {[%emt 0:02:10]} 26. dxe4 {[%emt 0:00:40]} Bxe4 {[%emt 0:02:17]} 27. Qxd6 {[%emt 0:00:11]} Qxb3 {[%emt 0:04:38]} 28. Qxe6 {[%emt 0:00:06]} Qc3 {[%emt 0:05:30]} 29. Bd2 {[%emt 0:02:14]} Qc2 {[%emt 0:05:54]} 30. Ra2 {[%emt 0:00:23]} Qc4 {[%emt 0:06:15]} 31. Qxc4 {[%emt 0:00:55]} Rxc4 {[%emt 0:00:40]} 32. Ng5 {[%emt 0:00:38]} Bd5 {[%emt 0:01:13]} 33. Ra5 {[%emt 0:01:04]} Rd4 {[%emt 0:00:40]} 34. Bc3 {[%emt 0:00:46]} Rd3 {[%emt 0:00:43]} 35. Re3 {[%emt 0:02:10]} Rd1+ {[%emt 0:04:41]} 36. Re1 {[%emt 0:00:07]} Rd3 {[%emt 0:00:30]} 37. Re3 {[%emt 0:00:06]} Rd1+ {[%emt 0:00:21]} 38. Re1 {[%emt 0:00:08]} 1/2-1/2

[Event "Icelandic Team-ch Kvika Leagu 2023-24"]
[Site "Reykjavik"]
[Date "2024.03.02"]
[Round "9"]
[White "Bjornsson, Tomas"]
[Black "Ptacnikova, Lenka"]
[Result "0-1"]
[ECO "B44"]
[WhiteElo "2165"]
[BlackElo "2067"]
[Annotator "RC"]
[PlyCount "134"]
[EventDate "2024.02.29"]
[EventType "team-tourn"]
[EventCountry "ISL"]
[SourceTitle "playchess.com"]
[Source "ChessBase"]
[SourceQuality "1"]
[TimeControl "40/5400+30:900+30"]

1. e4 {[%emt 0:00:02]} c5 {[%emt 0:00:46]} 2. Nf3 {[%emt 0:00:11]} e6 {[%emt 0:00:42]} 3. d4 {[%emt 0:00:39]} cxd4 {[%emt 0:00:10]} 4. Nxd4 {[%emt 0:00:07]} Nf6 {[%emt 0:00:09]} 5. Bd3 {[%emt 0:01:28]} Nc6 {[%emt 0:02:29]} 6. Nxc6 {[%emt 0:00:37]} bxc6 {[%emt 0:00:37]} 7. c4 {[%emt 0:00:26]} d5 {[%emt 0:01:36]} 8. cxd5 {[%emt 0:04:17]} cxd5 {[%emt 0:00:11]} 9. Bb5+ {[%emt 0:02:03]} Bd7 {[%emt 0:00:12]} 10. Bxd7+ {[%emt 0:00:07]} Qxd7 {[%emt 0:00:08]} 11. exd5 {[%emt 0:01:31]} Nxd5 {[%emt 0:05:03]} 12. O-O {[%emt 0:00:18]} Be7 {[%emt 0:01:03]} 13. Nd2 {[%emt 0:01:06]} O-O {[%emt 0:04:13]} 14. Ne4 {[%emt 0:04:30]} Rfd8 {[%emt 0:09:52]} 15. Qe2 {[%emt 0:16:02]} h6 {[%emt 0:06:42]} 16. Bd2 {[%emt 0:00:54]} Rab8 {[%emt 0:08:47]} 17. b3 {[%emt 0:01:08]} Rbc8 {[%emt 0:08:06]} 18. Ba5 {[%emt 0:04:22]} Re8 {[%emt 0:01:32]} 19. Rfd1 {[%emt 0:03:29]} Qc6 {[%emt 0:08:31]} 20. h3 {[%emt 0:11:25]} f5 {[%emt 0:02:51]} 21. Ng3 {[%emt 0:01:24]} Bf6 {[%emt 0:13:31]} 22. Rac1 {[%emt 0:01:52]} Qxc1 {[%emt 0:01:21]} 23. Rxc1 {[%emt 0:00:05]} Rxc1+ {[%emt 0:00:03]} 24. Kh2 {[%emt 0:00:06]} Kf7 {[%emt 0:08:48]} 25. Qd3 {[%emt 0:08:43]} Be5 {[%emt 0:01:42]} 26. Bd2 {[%emt 0:02:42]} Ra1 {[%emt 0:02:10]} 27. a4 {[%emt 0:00:46]} Re7 {[%emt 0:03:44]} 28. h4 {[%emt 0:04:38]} Nf6 {[%emt 0:01:40]} 29. f3 {[%emt 0:03:48]} Nh5 {[%emt 0:01:00]} 30. f4 {[%emt 0:00:05]} Nxf4 {[%emt 0:00:26]} 31. Bxf4 {[%emt 0:02:41]} Bxf4 {[%emt 0:00:05]} 32. Qd4 {[%emt 0:00:10]} Bxg3+ {[%emt 0:00:37]} 33. Kxg3 {[%emt 0:00:07]} Rc1 {[%emt 0:00:30]} 34. b4 {[%emt 0:00:40]} Rcc7 {[%emt 0:00:48]} 35. b5 {[%emt 0:00:54]} Red7 {[%emt 0:00:37]} 36. Qe3 {[%emt 0:01:28]} Rc4 {[%emt 0:00:35]} 37. Qa3 {[%emt 0:02:36]} Rcd4 {[%emt 0:02:01]} 38. Kf2 {[%emt 0:00:49]} Rxh4 {[%emt 0:01:21]} 39. a5 {[%emt 0:00:28]} Rhd4 {[%emt 0:01:54]} 40. Qc5 {[%emt 0:00:00]} R4d5 {[%emt 0:00:00]} 41. Qc6 {[%emt 0:00:00]} Re7 {[%emt 0:00:00]} 42. g3 {[%emt 0:00:00]} g5 {[%emt 0:00:00]} 43. a6 {[%emt 0:00:00]} Rd8 {[%emt 0:00:00]} 44. Qc4 {[%emt 0:00:10]} Rb8 {[%emt 0:00:00]} 45. Qd4 {[%emt 0:00:23]} Rxb5 {[%emt 0:03:59]} 46. Qh8 {[%emt 0:00:12]} g4 {[%emt 0:03:17]} 47. Qxh6 {[%emt 0:01:54]} Ke8 {[%emt 0:04:28]} 48. Qh8+ {[%emt 0:02:32]} Kd7 {[%emt 0:00:18]} 49. Qa8 {[%emt 0:03:31]} Kd6 {[%emt 0:00:41]} 50. Qd8+ {[%emt 0:02:57]} Rd7 {[%emt 0:00:07]} 51. Qf6 {[%emt 0:00:15]} Rd5 {[%emt 0:01:37]} 52. Ke3 {[%emt 0:01:28]} Re5+ {[%emt 0:03:48]} 53. Kf2 {[%emt 0:01:44]} Re4 {[%emt 0:00:49]} 54. Qf8+ {[%emt 0:00:19]} Kd5 {[%emt 0:01:45]} 55. Qa8+ {[%emt 0:01:42]} Kd4 {[%emt 0:00:27]} 56. Qb8 {[%emt 0:02:23]} Rh7 {[%emt 0:00:51]} 57. Qb4+ {[%emt 0:03:13]} Kd5 {[%emt 0:00:27]} 58. Qb5+ {[%emt 0:02:01]} Kd6 {[%emt 0:00:11]} 59. Qb8+ {[%emt 0:00:38]} Kc6 {[%emt 0:00:30]} 60. Kf1 {[%emt 0:00:46]} Rh1+ {[%emt 0:00:48]} 61. Kf2 {[%emt 0:01:14]} Rh2+ {[%emt 0:00:46]} 62. Kg1 {[%emt 0:00:48]} Rhe2 {[%emt 0:01:22]} 63. Qc8+ {[%emt 0:03:29]} Kb5 {[%emt 0:00:50]} 64. Qb7+ {[%emt 0:01:17]} Ka5 {[%emt 0:00:33]} 65. Qc7+ {[%emt 0:00:00]} Kb4 {[%emt 0:00:59]} 66. Qd6+ {[%emt 0:01:49]} Kb3 {[%emt 0:01:12]} 67. Qd3+ {[%emt 0:01:12]} Ka2 {[%emt 0:00:15]} 0-1

[Event "Icelandic Team-ch Kvika Leagu 2023-24"]
[Site "Reykjavik"]
[Date "2024.03.02"]
[Round "9"]
[White "Mai, Alexander Oliver"]
[Black "Halldorsson, Bragi"]
[Result "1/2-1/2"]
[ECO "B13"]
[WhiteElo "2160"]
[BlackElo "2051"]
[Annotator "RC"]
[PlyCount "55"]
[EventDate "2024.02.29"]
[EventType "team-tourn"]
[EventCountry "ISL"]
[SourceTitle "playchess.com"]
[Source "ChessBase"]
[SourceQuality "1"]
[TimeControl "40/5400+30:900+30"]

1. e4 {[%emt 0:00:05]} c6 {[%emt 0:00:18]} 2. d4 {[%emt 0:00:08]} d5 {[%emt 0:00:13]} 3. exd5 {[%emt 0:00:18]} cxd5 {[%emt 0:00:14]} 4. Bd3 {[%emt 0:00:10]} Nc6 {[%emt 0:00:12]} 5. c3 {[%emt 0:00:09]} g6 {[%emt 0:00:10]} 6. Bf4 {[%emt 0:02:08]} Bg7 {[%emt 0:00:15]} 7. Nd2 {[%emt 0:04:13]} Nh6 {[%emt 0:00:39]} 8. Ngf3 {[%emt 0:00:59]} O-O {[%emt 0:00:43]} 9. O-O {[%emt 0:02:13]} f6 {[%emt 0:02:50]} 10. c4 {[%emt 0:03:13]} Bf5 {[%emt 0:04:23]} 11. Nb3 {[%emt 0:04:32]} b6 {[%emt 0:04:52]} 12. Bxh6 {[%emt 0:13:10]} Bxh6 {[%emt 0:04:22]} 13. Bxf5 {[%emt 0:00:10]} gxf5 {[%emt 0:00:12]} 14. Qd3 {[%emt 0:02:56]} e6 {[%emt 0:01:07]} 15. Rfe1 {[%emt 0:01:24]} Re8 {[%emt 0:00:30]} 16. a3 {[%emt 0:07:52]} Qd7 {[%emt 0:00:49]} 17. Re2 {[%emt 0:03:27]} Rac8 {[%emt 0:01:32]} 18. Rae1 {[%emt 0:04:35]} dxc4 {[%emt 0:01:59]} 19. Qxc4 {[%emt 0:00:18]} Ne5 {[%emt 0:00:27]} 20. Nxe5 {[%emt 0:03:04]} fxe5 {[%emt 0:00:10]} 21. Qd3 {[%emt 0:01:26]} e4 {[%emt 0:00:22]} 22. Qg3+ {[%emt 0:01:28]} Kh8 {[%emt 0:00:22]} 23. f3 {[%emt 0:01:29]} Rg8 {[%emt 0:05:13]} 24. Qh3 {[%emt 0:01:06]} Bg7 {[%emt 0:01:33]} 25. fxe4 {[%emt 0:01:45]} Bxd4+ {[%emt 0:02:01]} 26. Kh1 {[%emt 0:00:12]} Bf6 {[%emt 0:04:46]} 27. exf5 {[%emt 0:11:10]} exf5 {[%emt 0:00:19]} 28. Rd2 {[%emt 0:07:48]} 1/2-1/2

[Event "Icelandic Team-ch Kvika Leagu 2023-24"]
[Site "Reykjavik"]
[Date "2024.03.02"]
[Round "9"]
[White "Sigurjonsson, Stefan Th."]
[Black "Fridbertsson, Aegir"]
[Result "1/2-1/2"]
[ECO "C07"]
[WhiteElo "2106"]
[BlackElo "2075"]
[Annotator "RC"]
[PlyCount "88"]
[EventDate "2024.02.29"]
[EventType "team-tourn"]
[EventCountry "ISL"]
[SourceTitle "playchess.com"]
[Source "ChessBase"]
[SourceQuality "1"]
[TimeControl "40/5400+30:900+30"]

1. e4 {[%emt 0:00:04]} e6 {[%emt 0:00:33]} 2. d4 {[%emt 0:00:13]} d5 {[%emt 0:00:07]} 3. Nd2 {[%emt 0:02:38]} c5 {[%emt 0:01:32]} 4. Ngf3 {[%emt 0:01:42]} Nc6 {[%emt 0:03:07]} 5. Bb5 {[%emt 0:16:29]} a6 {[%emt 0:02:16]} 6. Bxc6+ {[%emt 0:00:32]} bxc6 {[%emt 0:00:07]} 7. O-O {[%emt 0:01:41]} Nf6 {[%emt 0:01:45]} 8. Re1 {[%emt 0:05:40]} cxd4 {[%emt 0:09:08]} 9. e5 {[%emt 0:05:19]} Nd7 {[%emt 0:00:45]} 10. Nxd4 {[%emt 0:00:28]} Qc7 {[%emt 0:00:52]} 11. Qh5 {[%emt 0:05:51]} g6 {[%emt 0:04:35]} 12. Qh4 {[%emt 0:03:44]} c5 {[%emt 0:03:23]} 13. N4f3 {[%emt 0:00:55]} Bg7 {[%emt 0:01:23]} 14. Nf1 {[%emt 0:02:07]} Nxe5 {[%emt 0:02:01]} 15. Nxe5 {[%emt 0:02:51]} Bxe5 {[%emt 0:00:17]} 16. Bh6 {[%emt 0:00:49]} Bxb2 {[%emt 0:04:43]} 17. Rad1 {[%emt 0:08:42]} Bb7 {[%emt 0:10:25]} 18. Ne3 {[%emt 0:01:14]} Bd4 {[%emt 0:09:48]} 19. Rxd4 {[%emt 0:03:58]} cxd4 {[%emt 0:00:48]} 20. Ng4 {[%emt 0:01:18]} Kd7 {[%emt 0:02:34]} 21. Qf6 {[%emt 0:15:46]} Rae8 {[%emt 0:06:09]} 22. Bf4 {[%emt 0:02:12]} Qc5 {[%emt 0:03:23]} 23. Ne5+ {[%emt 0:02:06]} Kc8 {[%emt 0:00:32]} 24. Nxf7 {[%emt 0:04:40]} Rhf8 {[%emt 0:02:32]} 25. Rxe6 {[%emt 0:06:49]} Qb6 {[%emt 0:07:28]} 26. Nd6+ {[%emt 0:02:44]} Qxd6 {[%emt 0:01:52]} 27. Bxd6 {[%emt 0:00:10]} Rxf6 {[%emt 0:00:14]} 28. Rxe8+ {[%emt 0:00:09]} Kd7 {[%emt 0:00:31]} 29. Re7+ {[%emt 0:00:07]} Kxd6 {[%emt 0:03:16]} 30. Rxb7 {[%emt 0:00:03]} Kc5 {[%emt 0:00:20]} 31. Rxh7 {[%emt 0:00:33]} Rb6 {[%emt 0:01:42]} 32. Kf1 {[%emt 0:00:16]} Rb2 {[%emt 0:00:30]} 33. a3 {[%emt 0:00:25]} d3 {[%emt 0:00:39]} 34. cxd3 {[%emt 0:01:25]} Kd4 {[%emt 0:00:09]} 35. Rh3 {[%emt 0:01:07]} Ra2 {[%emt 0:00:13]} 36. a4 {[%emt 0:00:07]} g5 {[%emt 0:00:18]} 37. Rg3 {[%emt 0:00:12]} Kc3 {[%emt 0:00:19]} 38. Rxg5 {[%emt 0:00:24]} d4 {[%emt 0:00:08]} 39. Rg3 {[%emt 0:01:15]} Rxa4 {[%emt 0:00:12]} 40. h4 {[%emt 0:00:00]} Ra1+ {[%emt 0:00:00]} 41. Ke2 {[%emt 0:00:31]} Ra2+ {[%emt 0:00:39]} 42. Ke1 {[%emt 0:00:17]} Ra1+ {[%emt 0:01:05]} 43. Ke2 {[%emt 0:00:08]} Ra2+ {[%emt 0:00:50]} 44. Ke1 {[%emt 0:00:56]} Ra1+ {[%emt 0:00:20]} 1/2-1/2